bitfinex-derivatives/quotes_ETHF0:USTF0_20251211
["timestamp","ask_amount","ask_price","bid_price","bid_amount"]
[1765437861576,17.48398276,3196.4,3196.3,40.64033183]
[1765437861871,10.47648276,3196.4,3196.3,41.78779476]
[1765437863467,10.47648276,3196.4,3196.3,30.54846304]
[1765437863963,17.57328276,3196.4,3196.3,30.54846304]
[1765437864170,6.92865818,3196.4,3196.3,30.54846304]
[1765437865072,14.12655818,3196.4,3196.3,30.54846304]
[1765437865274,14.1289678,3196.4,3196.3,18.19746304]
[1765437865474,14.1289678,3196.4,3196.3,30.54846304]
[1765437865678,14.1289678,3196.4,3196.3,3.41200011]
[1765437865873,14.1289678,3196.4,3196.3,15.76300011]
[1765437866182,14.1289678,3196.4,3196.3,22.59300011]
[1765437866478,14.1289678,3196.4,3196.3,15.76300011]
[1765437866680,14.1289678,3196.4,3196.3,22.59300011]
[1765437867182,14.1289678,3196.4,3196.3,10.24200011]
[1765437867383,14.1289678,3196.4,3196.3,15.76300011]
[1765437867781,14.1289678,3196.4,3196.3,29.40100011]
[1765437867977,0.00240962,3196.4,3196.3,29.40100011]
[1765437868179,7.09920962,3196.4,3196.3,29.40100011]
[1765437868377,7.09920962,3196.4,3196.3,40.64389385]
[1765437868577,0.00240962,3196.4,3196.3,40.64389385]
[1765437869081,7.24020962,3196.4,3196.3,40.64389385]
[1765437869278,14.27040962,3196.4,3196.3,28.29289385]
[1765437869473,14.27040962,3196.4,3196.3,27.00589385]
[1765437869677,14.27040962,3196.4,3196.3,33.81679385]
[1765437869978,14.27040962,3196.4,3196.3,28.96369385]
[1765437870283,14.27040962,3196.4,3196.3,27.00589385]
[1765437870581,14.27040962,3196.4,3196.3,33.81679385]
[1765437870777,14.27040962,3196.4,3196.3,34.96425678]
[1765437870982,14.27040962,3196.4,3196.3,42.46215678]
[1765437871584,14.27040962,3196.4,3196.3,28.15335678]
[1765437872089,14.27040962,3196.4,3196.3,34.96425678]
[1765437872284,14.27040962,3196.4,3196.3,22.61325678]
[1765437872474,14.27040962,3196.4,3196.3,34.96425678]
[1765437873084,14.27040962,3196.4,3196.3,28.15335678]
[1765437874084,14.27040962,3196.4,3196.3,27.00589385]
[1765437874485,14.27040962,3196.4,3196.3,33.81679385]
[1765437876488,7.24020962,3196.4,3196.3,33.81679385]
[1765437877387,14.27040962,3196.4,3196.3,33.81679385]
[1765437878183,14.27040962,3196.4,3196.3,27.00589385]
[1765437879289,14.27040962,3196.4,3196.3,33.81679385]
[1765437880191,0.00240962,3196.4,3196.3,33.81679385]
[1765437880490,7.24020962,3196.4,3196.3,33.81679385]
[1765437882394,14.27040962,3196.4,3196.3,33.81679385]
[1765437882694,7.24020962,3196.4,3196.3,33.81679385]
[1765437884494,7.24020962,3196.4,3196.3,30.07180011]
[1765437885500,14.27040962,3196.4,3196.3,30.07180011]
[1765437886499,14.27040962,3196.4,3196.3,22.57390011]
[1765437886798,14.27040962,3196.4,3196.3,33.82053413]
[1765437888199,14.27040962,3196.4,3196.3,27.00963413]
[1765437888394,14.27040962,3196.4,3196.3,33.82053413]
[1765437888596,14.27040962,3196.4,3196.3,22.57390011]
[1765437888796,14.27040962,3196.4,3196.3,30.07180011]
[1765437889606,7.24020962,3196.4,3196.3,30.07180011]
[1765437890503,14.27040962,3196.4,3196.3,30.07180011]
[1765437893809,14.27040962,3196.4,3196.3,41.32067606]
[1765437895606,7.24020962,3196.4,3196.3,41.32067606]
[1765437895806,7.24020962,3196.4,3196.3,30.07180011]
[1765437898716,0.00240962,3196.4,3196.3,31.19057559]
[1765437899311,7.47700962,3196.4,3196.3,31.19057559]
[1765437899614,14.78890962,3196.4,3196.3,30.07180011]
[1765437900111,7.47700962,3196.4,3196.3,30.07180011]
[1765437901513,14.78890962,3196.4,3196.3,22.62330011]
[1765437901808,14.78890962,3196.4,3196.3,15.76300011]
[1765437902406,14.78890962,3196.4,3196.3,3.41200011]
[1765437902706,14.78890962,3196.4,3196.3,15.76100011]
[1765437903307,7.47700962,3196.4,3196.3,29.61280011]
[1765437903510,14.78890962,3196.4,3196.3,29.61280011]
[1765437904611,14.78890962,3196.4,3196.3,22.62130011]
[1765437905112,14.78890962,3196.4,3196.3,15.76100011]
[1765437906714,14.78890962,3196.4,3196.3,29.61280011]
[1765437906909,0.00240962,3196.4,3196.3,29.61280011]
[1765437914314,0.00240962,3196.4,3196.3,34.80080011]
[1765437914520,0.00240962,3196.4,3196.3,29.61280011]
[1765437914813,4e-05,3196.6,3196.5,18.8662]
[1765437915019,4e-05,3196.6,3196.5,23.19277548]
[1765437915221,17.5207,3197.4,3197.3,7.35046]
[1765437915421,17.5207,3197.4,3197.3,19.69946]
[1765437915618,17.5207,3197.4,3197.3,30.47895077]
[1765437915619,14.3129,3197.4,3197.3,30.47895077]
[1765437915920,14.31656443,3197.4,3197.3,30.47895077]
[1765437916821,6.87256443,3197.4,3197.3,30.47895077]
[1765437917014,14.31656443,3197.4,3197.3,30.47895077]
[1765437918217,6.87256443,3197.4,3197.3,30.47895077]
[1765437918618,14.31656443,3197.4,3197.3,30.47895077]
[1765437922422,14.31656443,3197.4,3197.3,23.08535077]
[1765437923218,14.31656443,3197.4,3197.3,30.47895077]
[1765437924119,6.87256443,3197.4,3197.3,30.47895077]
[1765437924522,14.31656443,3197.4,3197.3,30.47895077]
[1765437926520,0.00366443,3197.4,3197.3,30.47895077]
[1765437927019,6.87256443,3197.4,3197.3,30.47895077]
[1765437928524,14.31656443,3197.4,3197.3,18.12995077]
[1765437928723,14.31656443,3197.4,3197.3,30.47595077]
[1765437930524,14.31656443,3197.4,3197.3,31.59472625]
[1765437930525,0.00366443,3197.4,3197.3,31.59472625]
[1765437931717,6.98706443,3197.4,3197.3,31.59472625]
[1765437931922,6.98706443,3197.4,3197.3,30.47595077]
[1765437932523,0.00366443,3197.4,3197.3,30.47595077]
[1765437934730,0.00366443,3197.4,3197.3,31.6225324]
[1765437936428,0.00366443,3197.4,3197.3,30.47595077]
[1765437936628,0.00366443,3197.4,3197.3,31.6225324]
[1765437937733,0.00366443,3197.4,3197.3,30.47595077]
[1765437937927,0.00366443,3197.4,3197.3,31.6225324]
[1765437938618,0.00469359,3197.7,3197.6,13.96495]
[1765437938821,0.00469359,3197.7,3197.6,30.66433163]
[1765437939022,6.98809359,3197.7,3197.6,33.98517939]
[1765437939425,0.00469359,3197.7,3197.6,33.98517939]
[1765437939626,0.00851108,3197.7,3197.6,33.98517939]
[1765437942137,0.00851108,3197.7,3197.6,32.83859776]
[1765437942432,6.99191108,3197.7,3197.6,33.98517939]
[1765437942937,14.22051108,3197.7,3197.6,33.98517939]
[1765437943625,14.22051108,3197.7,3197.6,6.68499776]
[1765437943826,14.22051108,3197.7,3197.6,3.47719776]
[1765437944025,14.22051108,3197.7,3197.6,15.82119776]
[1765437947243,14.22051108,3197.7,3197.6,3.47719776]
[1765437947435,14.22051108,3197.7,3197.6,15.82119776]
[1765437950246,14.212,3197.4,3197.3,0.00469359]
[1765437950445,15.35858163,3197.4,3197.3,0.00469359]
[1765437950645,15.35858163,3197.4,3197.3,24.76558027]
[1765437951539,15.35858163,3197.4,3197.3,24.92194027]
[1765437952742,15.35858163,3197.4,3197.3,15.93264941]
[1765437957851,15.35858163,3197.4,3197.3,0.15636]
[1765437959355,21.35858163,3197.4,3197.3,0.15636]
[1765437960951,15.35858163,3197.4,3197.3,0.15636]
[1765437963153,14.0707,3197.1,3196.8,12.19709086]
[1765437963351,0.9082,3196.5,3196.2,7.44692458]
[1765437963551,18.42508163,3196.3,3196.2,7.44692458]
[1765437964556,18.42508163,3196.3,3196.2,0.15642]
[1765437965055,17.2785,3196.3,3196.2,7.61222]
[1765437965259,17.2785,3196.3,3196.2,17.97417673]
[1765437965459,14.0707,3196.3,3196.2,17.97417673]
[1765437965761,14.0707,3196.3,3196.2,30.31917673]
[1765437966155,7.0406,3196.3,3196.2,30.31917673]
[1765437967658,1.14658163,3196.8,3196.2,30.16275673]
[1765437967863,14.0707,3196.7,3196.2,15.71555673]
[1765437968069,7.0406,3196.3,3196.2,30.31917673]
[1765437968267,14.0707,3196.7,3196.6,7.6122]
[1765437969166,14.0707,3196.7,3196.6,12.5024]
[1765437971971,15.21728163,3196.7,3196.6,12.5024]
[1765437972573,15.21728163,3196.7,3196.6,0.1564]
[1765437975269,17.5362,3196.9,3196.8,0.15639]
[1765437975469,18.68278163,3196.9,3196.8,0.15639]
[1765437980272,17.5362,3196.9,3196.8,0.15639]
[1765437989586,17.5362,3196.9,3196.8,7.58459]
[1765437989979,17.5362,3196.9,3196.8,0.15639]
[1765437991678,17.5362,3196.9,3196.8,14.69649]
[1765437992080,3.2078,3196.9,3196.8,18.28480212]
[1765437992684,10.4811,3196.9,3196.8,18.28480212]
[1765437993185,3.2078,3196.9,3196.8,18.28480212]
[1765437993576,10.4811,3196.9,3196.8,18.28480212]
[1765437993980,17.877,3196.9,3196.8,18.28480212]
[1765437994485,19.02358163,3196.9,3196.8,11.17730212]
[1765437994684,17.877,3196.9,3196.8,18.28480212]
[1765437996988,17.877,3197.3,3197.2,14.69647]
[1765437997177,10.4811,3197.3,3197.2,14.69647]
[1765437997381,10.4811,3197.3,3197.2,18.30637239]
[1765437997884,10.4811,3197.3,3197.2,30.65137239]
[1765437999485,17.877,3197.3,3197.2,30.65137239]
[1765438004195,17.877,3197.3,3197.2,16.11127239]
[1765438004989,17.877,3197.3,3197.2,23.54387239]
[1765438007092,17.877,3197.3,3197.2,30.65137239]
[1765438010291,10.4811,3197.3,3197.2,30.65137239]
[1765438013801,17.877,3197.3,3197.2,30.64937239]
[1765438014207,17.88551108,3197.7,3197.6,0.15635]
[1765438014901,17.88551108,3197.7,3197.6,7.58895]
[1765438015298,3.21631108,3197.7,3197.6,27.03945]
[1765438015505,17.88551108,3197.7,3197.6,27.03945]
[1765438016899,17.88551108,3197.7,3197.6,12.49835]
[1765438017098,17.88551108,3197.7,3197.6,7.45165567]
[1765438019500,17.88551108,3197.7,3197.6,0.15635]
[1765438020301,17.88551108,3197.7,3197.0,8.94614679]
[1765438020302,14.6268,3197.6,3197.0,8.94614679]
[1765438020507,16.053,3197.5,3197.4,0.15636]
[1765438021503,14.6268,3197.5,3197.4,0.15636]
[1765438024010,14.6268,3197.5,3197.4,7.37006]
[1765438024211,14.6268,3197.5,3197.4,0.15636]
[1765438024812,18.4798,3197.5,3197.4,0.15636]
[1765438025409,19.906,3197.5,3197.4,0.15636]
[1765438026913,18.4798,3197.5,3197.4,0.15636]
[1765438027714,18.4798,3197.5,3197.4,7.37006]
[1765438028414,18.4798,3197.5,3197.4,0.15636]
[1765438028807,19.906,3197.5,3197.4,0.15636]
[1765438032809,18.4798,3197.5,3197.4,7.65216]
[1765438033415,3.21631108,3197.7,3197.6,14.88985]
[1765438033416,0.00851108,3197.7,3197.6,14.88985]
[1765438033719,3.2078,3198.1,3198.0,19.09743]
[1765438034013,3.2078,3198.1,3198.0,22.48696065]
[1765438034916,3.21146178,3198.1,3198.0,22.48696065]
[1765438037617,17.70726178,3198.1,3198.0,22.48696065]
[1765438040222,17.70726178,3198.1,3198.0,29.77301512]
[1765438041517,3.21146178,3198.1,3198.0,29.77301512]
[1765438042611,3.21146178,3198.1,3198.0,22.48696065]
[1765438043220,10.54706178,3198.1,3198.0,22.48696065]
[1765438043418,17.70726178,3198.1,3198.0,34.82596065]
[1765438043717,18.82607956,3198.1,3198.0,10.82709202]
[1765438043922,18.82607956,3198.1,3198.0,7.43756137]
[1765438044920,18.82607956,3198.1,3198.0,0.15633]
[1765438046220,17.70726178,3198.1,3198.0,19.09743]
[1765438046416,3.21146178,3198.1,3198.0,19.09743]
[1765438047120,0.00366178,3198.1,3198.0,22.5443186]
[1765438047418,0.00366178,3198.1,3198.0,29.82554997]
[1765438048908,7.33926178,3198.1,3198.0,29.82554997]
[1765438049116,14.69426178,3198.1,3198.0,29.82554997]
[1765438049318,14.69426178,3198.1,3198.0,11.64516137]
[1765438049715,14.69426178,3198.1,3198.0,24.18863]
[1765438049914,14.69426178,3198.1,3198.0,31.22203]
[1765438052620,14.69426178,3198.1,3197.9,7.28123137]
[1765438052621,7.3318,3197.5,3197.4,1e-08]
[1765438052818,4.32661778,3197.5,3196.5,18.9438]
[1765438053021,9.28433,3198.0,3196.5,18.9438]
[1765438053022,3.2078,3196.7,3196.5,18.9438]
[1765438053325,3.2078,3196.7,3196.6,14.6765]
[1765438060123,3.2078,3196.7,3196.6,0.1564]
[1765438060425,3.2078,3196.7,3196.6,7.6431]
[1765438060627,3.2078,3196.7,3196.6,14.6765]
[1765438065831,1.14769598,3197.1,3197.0,11.754]
[1765438066528,3.2078,3197.2,3197.1,14.5201]
[1765438066926,3.2078,3197.2,3197.1,17.84886029]
[1765438067127,3.2078,3197.9,3197.8,14.5201]
[1765438067332,4.35549598,3197.9,3197.8,14.5201]
[1765438068731,4.35549598,3197.9,3197.8,14.67644]
[1765438070227,3.2078,3197.9,3197.8,14.67644]
[1765438070533,4.35549598,3197.9,3197.8,14.67644]
[1765438072432,3.2078,3197.9,3197.8,14.67644]
[1765438073432,3.2078,3197.9,3197.8,27.01744]
[1765438073624,0.00366178,3198.1,3198.0,18.94373]
[1765438073935,0.00366178,3198.1,3198.0,22.41598988]
[1765438076635,0.00366178,3198.1,3198.0,4.42363]
[1765438077040,1.15135776,3198.1,3198.0,11.91033]
[1765438077731,1.15135776,3198.1,3198.0,18.94373]
[1765438081736,0.00366178,3198.1,3198.0,18.94373]
[1765438081940,0.00366178,3198.1,3198.0,22.30642298]
[1765438082245,3.07772659,3198.4,3198.3,14.05172]
[1765438082540,3.2078,3198.8,3198.7,0.15629]
[1765438082944,3.2078,3198.8,3198.7,7.11249]
[1765438083245,3.21043797,3198.8,3198.7,7.11526471]
[1765438083845,4.35813395,3198.8,3198.7,7.11526471]
[1765438084142,4.35813395,3198.8,3198.7,0.15906471]
[1765438087949,4.35813395,3198.8,3198.0,4.2673]
[1765438088149,1.14769598,3198.1,3198.0,4.66277818]
[1765438088348,1.14769598,3198.1,3198.0,4.42363]
[1765438088846,1.14769598,3198.1,3198.0,4.4275626]
[1765438089951,1.14769598,3198.1,3198.0,0.1602626]
[1765438090151,2.29539196,3198.1,3198.0,0.1602626]
[1765438090448,1.14769598,3198.1,3198.0,0.1602626]
[1765438095548,1.14769598,3198.1,3198.0,4.3788626]
[1765438097950,2.29539196,3198.1,3198.0,0.0039326]
[1765438098255,2.29539196,3198.1,3197.3,7.26870823]
[1765438098455,1.14769598,3197.4,3197.3,7.26870823]
[1765438098646,2.29539196,3197.4,3197.2,0.15637]
[1765438098954,3.2078,3197.3,3197.2,0.15637]
[1765438099151,3.2078,3197.3,3197.2,7.17701201]
[1765438099352,3.2078,3197.3,3197.2,0.15981201]
[1765438105451,3.2078,3197.3,3197.2,7.17701201]
[1765438105749,3.2078,3197.3,3197.2,13.99211201]
[1765438106456,3.2078,3197.3,3197.2,7.17701201]
[1765438106849,3.2078,3197.3,3197.2,0.15981201]
[1765438110554,3.2078,3197.3,3197.2,7.17701201]
[1765438110751,3.2078,3197.3,3197.2,0.15981201]
[1765438111354,4.35549598,3197.3,3197.2,0.15981201]
[1765438112162,3.2078,3197.3,3197.2,0.15981201]
[1765438114259,3.2078,3197.3,3197.2,14.69701201]
[1765438122673,3.2078,3197.7,3197.6,14.5372]
[1765438122873,3.2078,3197.7,3197.6,14.69355]
[1765438125477,3.2078,3197.7,3197.6,0.15635]
[1765438125778,3.2078,3197.7,3197.6,14.69355]
[1765438132788,3.2078,3197.7,3197.6,14.73633318]
[1765438135691,3.16501682,3197.7,3197.6,14.69355]
[1765438141098,3.2078,3198.1,3198.0,18.66753]
[1765438141793,3.2078,3198.5,3198.4,7.4054]
[1765438141990,3.2078,3198.5,3198.4,14.42381]
[1765438152812,0.00263797,3198.8,3198.7,14.3157]
[1765438156103,3.797e-05,3198.8,3198.7,17.5235]
[1765438156412,0.00469359,3199.1,3199.0,18.73298]
[1765438157312,0.00740327,3199.1,3199.0,18.73298]
[1765438158309,3.27e-06,3199.1,3199.0,18.73298]
[1765438161619,3.27e-06,3199.1,3199.0,34.59242823]
[1765438163414,3.27e-06,3199.1,3199.0,31.06998]
[1765438166623,3.27e-06,3199.1,3199.0,17.16360973]
[1765438166818,3.27e-06,3199.1,3199.0,10.16960973]
[1765438167015,3.27e-06,3199.1,3199.0,17.16360973]
[1765438167220,3.27e-06,3199.1,3199.0,24.32900973]
[1765438168528,3.27e-06,3199.1,3199.0,18.73298]
[1765438178745,1.14626606,3199.1,3199.0,18.73298]
[1765438179742,3.21249359,3199.4,3199.0,18.73298]
[1765438179743,4.35749359,3199.4,3199.3,14.695]
[1765438179944,5.50375638,3199.4,3199.3,20.30570319]
[1765438180442,6.64875638,3199.4,3199.3,20.30570319]
[1765438180742,6.65260057,3199.4,3199.3,20.30570319]
[1765438182942,5.50760057,3199.4,3199.3,20.30570319]
[1765438183243,6.65260057,3199.4,3199.3,13.10250319]
[1765438183444,6.65260057,3199.4,3199.3,5.61070319]
[1765438183741,6.65260057,3199.4,3199.3,20.46197319]
[1765438183742,3.21633778,3199.4,3199.3,20.46197319]
[1765438183942,3.21633778,3199.4,3199.3,14.85127]
[1765438185346,4.36133778,3199.4,3199.3,14.85127]
[1765438185942,5.50633778,3199.4,3199.3,14.85127]
[1765438186448,4.36133778,3199.4,3199.3,14.85127]
[1765438188849,5.36763778,3199.4,3199.3,14.85127]
[1765438189046,5.29313778,3199.4,3199.3,14.85127]
[1765438189247,5.29313778,3199.4,3199.3,0.15627]
[1765438189653,5.29313778,3199.4,3199.3,7.64807]
[1765438189847,5.29313778,3199.4,3199.3,14.85127]
[1765438190352,4.36133778,3199.4,3199.3,14.85127]
[1765438190846,3.21633778,3199.4,3199.3,14.85127]
[1765438192845,0.00853778,3199.4,3199.3,14.85127]
[1765438195855,0.00853778,3199.4,3199.3,22.15435875]
[1765438197056,0.00853778,3199.4,3199.3,14.85127]
[1765438198649,3.56073778,3199.4,3199.3,22.15221703]
[1765438199857,3.56073778,3199.4,3199.3,14.85127]
[1765438200050,3.21633778,3199.4,3199.3,14.85127]
[1765438200551,3.21633778,3199.4,3199.3,14.81037]
[1765438202257,3.21633778,3199.4,3199.3,22.11131703]
[1765438203254,3.21633778,3199.4,3199.3,14.94901703]
[1765438203459,3.21633778,3199.4,3199.3,7.64807]
[1765438204161,3.21633778,3199.4,3199.3,0.15627]
[1765438204960,3.21633778,3199.4,3199.3,13.92017]
[1765438206760,1.0157865,3199.8,3199.7,13.92015]
[1765438207556,1.0157865,3199.8,3199.7,14.16843217]
[1765438207757,1.01915088,3199.8,3199.7,14.17245072]
[1765438207956,1.01915088,3199.8,3199.7,13.92416855]
[1765438210861,7.34745088,3199.8,3199.7,13.92416855]
[1765438211162,4.25445088,3199.8,3199.7,13.92416855]
[1765438211464,7.34745088,3199.8,3199.7,13.92416855]
[1765438211664,4.25445088,3199.8,3199.7,13.92416855]
[1765438211963,7.27875088,3199.8,3199.7,6.76186855]
[1765438212356,7.27875088,3199.8,3199.7,13.82026855]
[1765438212864,1.01915088,3199.8,3199.7,13.82026855]
[1765438213254,3.97285088,3199.8,3199.7,13.82026855]
[1765438213454,6.85625088,3199.8,3199.7,0.16026855]
[1765438213659,6.85625088,3199.8,3199.7,0.00401855]
[1765438213857,5.7668,3199.6,3199.5,23.90610162]
[1765438214066,10.12086279,3199.6,3199.5,30.96450162]
[1765438214461,10.12086279,3199.6,3199.5,23.66355459]
[1765438215064,4.35406279,3199.6,3199.5,23.66724683]
[1765438215569,9.91166279,3199.6,3199.5,23.66724683]
[1765438216269,7.16746279,3199.6,3199.5,23.66724683]
[1765438216972,9.91166279,3199.6,3199.5,23.66724683]
[1765438217468,7.16746279,3199.6,3199.5,23.66724683]
[1765438219570,9.77266279,3199.6,3199.5,23.66724683]
[1765438219771,7.16746279,3199.6,3199.5,23.66724683]
[1765438223173,3.95966279,3199.6,3199.5,23.66724683]
[1765438223381,3.95966279,3199.6,3199.5,18.05409224]
[1765438225579,3.95966279,3199.6,3199.5,23.66754739]
[1765438227076,1.14626279,3199.6,3199.5,23.66754739]
[1765438227682,3.13736279,3199.6,3199.5,23.66754739]
[1765438228077,3.13736279,3199.6,3199.5,18.05409224]
[1765438228280,1.14626279,3199.6,3199.5,18.05409224]
[1765438230978,0.00336438,3199.8,3199.7,12.7251]
[1765438231177,2.88622717,3199.8,3199.7,18.33854158]
[1765438231873,2.88622717,3199.8,3199.7,12.7251]
[1765438234283,1.14962717,3199.8,3199.7,12.7251]
[1765438235382,1.14962717,3199.8,3199.7,12.88135]
[1765438236384,0.00336438,3199.8,3199.7,12.88135]
[1765438237281,1.14626279,3199.9,3199.8,12.88134]
[1765438238180,1.14923707,3199.9,3199.8,12.88134]
[1765438238584,1.14923707,3199.9,3199.8,20.18228703]
[1765438238779,0.00297428,3199.9,3199.8,20.18228703]
[1765438240889,0.00297428,3199.9,3199.8,12.88134]
[1765438244300,1.11689737,3200.5,3200.4,12.7251]
[1765438244497,3.13759737,3200.5,3200.4,12.7251]
[1765438244900,7.1224,3200.8,3200.7,12.7251]
[1765438245101,8.23929737,3200.8,3200.7,6.5127]
[1765438245403,8.24249728,3200.8,3200.7,6.5127]
[1765438246507,8.24249728,3200.8,3200.7,12.7251]
[1765438247191,4.32789728,3200.8,3200.7,12.7251]
[1765438247394,3.21099991,3200.8,3200.7,12.7251]
[1765438247798,4.32789728,3200.8,3200.7,18.3310845]
[1765438248299,0.00469359,3201.1,3201.0,16.6079]
[1765438248505,0.00469359,3201.1,3201.0,25.4216845]
[1765438249204,0.0069602,3201.1,3201.0,25.4216845]
[1765438249404,7.33545757,3201.1,3201.0,25.4216845]
[1765438249802,0.0069602,3201.1,3201.0,25.5778645]
[1765438250099,3.2078,3202.3,3202.2,12.7251]
[1765438250407,14.08869737,3202.4,3202.3,6.5127]
[1765438250903,7.78699737,3202.4,3202.3,12.7251]
[1765438251103,1.11689737,3202.4,3202.3,12.7251]
[1765438251305,1.12040347,3202.4,3202.3,12.72803511]
[1765438251700,7.79050347,3202.4,3202.3,12.72803511]
[1765438253908,1.12040347,3202.4,3202.3,12.72803511]
[1765438254406,1.12040347,3202.4,3202.3,15.93583511]
[1765438255310,7.70970347,3202.4,3202.3,15.93583511]
[1765438256409,14.01140347,3202.4,3202.3,15.93583511]
[1765438256810,7.70970347,3202.4,3202.3,15.93583511]
[1765438257210,7.70970347,3202.4,3202.0,16.61258618]
[1765438257211,6.3973,3202.1,3202.0,16.61258618]
[1765438257512,13.75580347,3202.4,3202.3,6.5127]
[1765438257702,1.12040347,3202.4,3202.3,12.7251]
[1765438257908,0.0035061,3202.4,3202.3,15.9329]
[1765438258210,0.0035061,3202.4,3202.3,15.93552183]
[1765438258410,12.4424061,3202.4,3202.3,15.93552183]
[1765438258610,6.3372061,3202.4,3202.3,15.93552183]
[1765438258809,0.0035061,3202.4,3202.3,15.93552183]
[1765438259406,12.0149061,3202.4,3202.3,15.42302183]
[1765438259607,0.0035061,3202.4,3202.3,15.42302183]
[1765438261007,5.9097061,3202.4,3202.3,12.21522183]
[1765438261213,0.0035061,3202.4,3202.3,15.42302183]
[1765438261507,0.0035061,3202.4,3202.3,15.57914183]
[1765438261707,0.00468618,3202.7,3202.6,12.06251]
[1765438261904,13.10239737,3203.4,3203.3,11.9064]
[1765438262300,12.0114,3203.1,3203.0,9.3964]
[1765438262508,13.12829737,3203.1,3203.0,9.903]
[1765438262709,13.13149785,3203.1,3203.0,15.6029]
[1765438262908,13.13149785,3203.1,3203.0,9.903]
[1765438263111,13.13149785,3203.1,3203.0,15.6029]
[1765438263311,7.02629785,3203.1,3203.0,15.6029]
[1765438263612,13.13149785,3203.1,3203.0,15.6029]
[1765438264506,1.12009785,3203.1,3203.0,15.6029]
[1765438265106,7.02629785,3203.1,3203.0,15.6029]
[1765438266213,13.13149785,3203.1,3203.0,15.6029]
[1765438266513,13.13149785,3203.1,3203.0,9.903]
[1765438266914,13.13149785,3203.1,3203.0,3.6965]
[1765438267116,12.0114,3202.9,3202.8,6.3626]
[1765438267413,5.9062,3202.9,3202.8,12.0625]
[1765438268012,12.0114,3202.9,3202.8,0.1561]
[1765438268206,12.0114,3202.6,3202.5,3.6965]
[1765438268409,12.0114,3202.4,3202.3,9.41692183]
[1765438268611,12.0114,3202.1,3202.0,3.91160599]
[1765438268809,13.12829737,3202.1,3202.0,0.00468618]
[1765438269010,1.11689737,3202.1,3201.5,15.7892]
[1765438269216,12.0114,3202.1,3202.0,15.6029]
[1765438269616,12.0114,3202.1,3202.0,15.60566609]
[1765438270214,13.12829737,3202.1,3202.0,15.60566609]
[1765438270413,12.0114,3201.8,3201.7,0.00468618]
[1765438270620,13.12829737,3201.8,3201.7,0.00468618]
[1765438271122,13.12829737,3201.8,3201.7,6.21118618]
[1765438271514,13.12829737,3201.8,3201.7,11.91454729]
[1765438271720,7.02309737,3201.8,3201.7,11.91454729]
[1765438271920,13.30249737,3201.8,3201.7,11.91454729]
[1765438272218,13.30249737,3201.8,3201.7,6.21464729]
[1765438272421,13.30249737,3201.8,3201.7,11.95484729]
[1765438272616,13.30249737,3201.8,3201.7,6.21464729]
[1765438272817,13.30249737,3201.8,3201.7,11.95484729]
[1765438273518,15.2202,3202.2,3202.1,11.5976]
[1765438273720,16.33709737,3202.2,3202.1,11.5976]
[1765438274022,16.33709737,3202.2,3202.1,5.8574]
[1765438276218,10.05769737,3202.2,3202.1,11.5976]
[1765438276421,16.33709737,3202.2,3202.1,11.5976]
[1765438276724,10.05769737,3202.2,3202.1,11.5976]
[1765438276920,4.32469737,3202.2,3202.1,11.5976]
[1765438277117,12.0124,3202.1,3202.0,15.2244]
[1765438277318,12.0124,3202.1,3202.0,3.6268]
[1765438277520,12.0124,3202.1,3201.9,0.15614]
[1765438277521,12.0124,3202.0,3201.9,0.15614]
[1765438277717,12.0124,3202.0,3201.9,6.01354]
[1765438278426,12.0124,3202.0,3201.9,11.75374]
[1765438278721,12.0124,3202.0,3201.9,6.01354]
[1765438278917,12.0124,3202.0,3201.9,11.75374]
[1765438279118,5.733,3202.0,3201.9,11.75374]
[1765438279519,12.0124,3202.0,3201.9,11.75374]
[1765438279821,5.733,3202.0,3201.9,11.75374]
[1765438280225,12.0124,3202.0,3201.9,11.75374]
[1765438280522,5.733,3202.0,3201.9,11.75374]
[1765438282124,12.0124,3202.0,3201.9,11.75374]
[1765438283225,12.0124,3202.0,3201.9,6.01354]
[1765438283528,12.0124,3202.0,3201.9,11.75374]
[1765438285226,12.0124,3202.0,3201.9,6.01354]
[1765438285428,12.0124,3202.0,3201.9,11.75374]
[1765438288226,5.733,3202.0,3201.9,11.75374]
[1765438288829,10.07899737,3202.2,3202.1,11.2986]
[1765438289027,15.75239737,3202.2,3202.1,11.2986]
[1765438289531,15.75239737,3202.2,3202.1,5.5191]
[1765438289731,11.4277,3202.1,3202.0,8.969]
[1765438289934,11.4277,3202.1,3202.0,14.7485]
[1765438290133,4.32469737,3202.2,3202.1,11.2986]
[1765438290626,10.07899737,3202.2,3202.1,11.2986]
[1765438291230,11.4277,3202.1,3202.0,8.969]
[1765438292021,11.4277,3202.1,3202.0,3.4499]
[1765438292235,11.4277,3202.0,3201.9,0.15614]
[1765438292434,11.4277,3201.8,3201.7,0.00814729]
[1765438292831,11.4277,3201.8,3201.7,5.52724729]
[1765438293035,11.4277,3201.8,3201.7,11.30674729]
[1765438294434,6.87119737,3202.0,3201.9,11.2986]
[1765438295436,1.11689737,3202.0,3201.9,11.2986]
[1765438295937,6.87119737,3202.0,3201.9,11.2986]
[1765438298038,12.54459737,3202.0,3201.9,11.2986]
[1765438298235,5.7543,3201.8,3201.7,11.46289729]
[1765438298435,14.6355,3201.8,3201.5,11.18374703]
[1765438298628,6.87119737,3201.6,3201.5,22.48234703]
[1765438298834,6.8989857,3201.6,3201.5,22.48234703]
[1765438299233,6.8989857,3201.6,3201.5,15.1814]
[1765438299632,1.1446857,3201.6,3201.5,15.34045322]
[1765438303337,6.8989857,3201.6,3201.5,15.34045322]
[1765438303739,12.5723857,3201.6,3201.5,22.64275522]
[1765438303945,6.8989857,3201.6,3201.5,22.64275522]
[1765438304845,6.8989857,3201.6,3201.5,15.34045322]
[1765438306238,1.1446857,3201.6,3201.5,15.34045322]
[1765438307945,8.9621,3202.2,3202.1,11.2986]
[1765438308155,15.7801857,3202.2,3202.1,11.2986]
[1765438308544,16.9248714,3202.2,3202.1,11.2986]
[1765438308743,16.9248714,3202.2,3202.1,4.5191]
[1765438309042,11.4277,3202.1,3202.0,5.61599176]
[1765438309451,11.4277,3202.1,3202.0,1.65982463]
[1765438309649,11.4277,3201.8,3201.7,5.67525]
[1765438309950,15.7801857,3201.8,3201.7,5.67525]
[1765438311045,15.7801857,3201.8,3201.7,0.15615]
[1765438311543,15.7801857,3201.8,3201.7,5.67525]
[1765438312551,15.7801857,3201.8,3201.7,0.15615]
[1765438312851,11.4277,3201.6,3201.5,5.52199322]
[1765438313049,12.5723857,3201.6,3201.5,5.52199322]
[1765438313655,12.5723857,3201.6,3201.5,0.00289322]